[Event "Early-Titled-Tuesday-Blitz-March-05-2024"]
[Site "Chess.com"]
[Date "2024.03.05"]
[Round "2"]
[White "Matalon"]
[Black "BeardedNM"]
[Result "1-0"]
[WhiteElo "2475"]
[BlackElo "2204"]
[TimeControl "180+1"]
[EndTime "8:17:00 PST"]
[Termination "Matalon won by resignation"]

1. e4 {[%clk 0:02:56.1]} 1... e6 {[%clk 0:03:00.3]} 2. d4 {[%clk 0:02:55.4]}
2... d5 {[%clk 0:03:00.7]} 3. Nd2 {[%clk 0:02:55.6]} 3... Be7 {[%clk 0:03:00.5]}
4. c3 {[%clk 0:02:54.2]} 4... c5 {[%clk 0:02:59.7]} 5. dxc5 {[%clk 0:02:53.7]}
5... Nf6 {[%clk 0:02:56.6]} 6. Bd3 {[%clk 0:02:52.2]} 6... dxe4 {[%clk
0:02:52.2]} 7. Nxe4 {[%clk 0:02:49.1]} 7... Nxe4 {[%clk 0:02:52.2]} 8. Bxe4
{[%clk 0:02:49.3]} 8... Qxd1+ {[%clk 0:02:53.1]} 9. Kxd1 {[%clk 0:02:48.8]} 9...
Bxc5 {[%clk 0:02:53.8]} 10. Ke2 {[%clk 0:02:48.1]} 10... Nc6 {[%clk 0:02:45.8]}
11. Be3 {[%clk 0:02:46.8]} 11... Bb6 {[%clk 0:02:41.4]} 12. Bxb6 {[%clk
0:02:39.3]} 12... axb6 {[%clk 0:02:42.3]} 13. Nf3 {[%clk 0:02:39.1]} 13... f6
{[%clk 0:02:37.9]} 14. Rhd1 {[%clk 0:02:36.4]} 14... e5 {[%clk 0:02:25.7]} 15.
Rd6 {[%clk 0:02:33.8]} 15... Ke7 {[%clk 0:02:23.9]} 16. Rd2 {[%clk 0:02:13.7]}
16... Be6 {[%clk 0:02:14.7]} 17. Bd5 {[%clk 0:02:09.6]} 17... Rhd8 {[%clk
0:02:04.4]} 18. Bxe6 {[%clk 0:02:07]} 18... Kxe6 {[%clk 0:01:58.8]} 19. a3
{[%clk 0:02:05.4]} 19... Na5 {[%clk 0:01:48.5]} 20. Rad1 {[%clk 0:02:01.8]}
20... Rxd2+ {[%clk 0:01:47.8]} 21. Rxd2 {[%clk 0:01:58.6]} 21... Nc4 {[%clk
0:01:41]} 22. Rc2 {[%clk 0:01:58.3]} 22... Rd8 {[%clk 0:01:33.1]} 23. a4 {[%clk
0:01:57.9]} 23... Rc8 {[%clk 0:01:00.5]} 24. b3 {[%clk 0:01:52.7]} 24... Na5
{[%clk 0:00:59.2]} 25. Nd2 {[%clk 0:01:49.4]} 25... Nc6 {[%clk 0:00:45.3]} 26.
Nc4 {[%clk 0:01:47.6]} 26... b5 {[%clk 0:00:39.9]} 27. axb5 {[%clk 0:01:46.8]}
27... Ne7 {[%clk 0:00:34.7]} 28. Rd2 {[%clk 0:01:43.9]} 28... Rc5 {[%clk
0:00:26.3]} 29. Rd6+ {[%clk 0:01:41.5]} 29... Kf7 {[%clk 0:00:26.6]} 30. Rd7
{[%clk 0:01:40.2]} 30... b6 {[%clk 0:00:17.5]} 31. Kd3 {[%clk 0:01:25.4]} 31...
Ke8 {[%clk 0:00:17.2]} 32. Rb7 {[%clk 0:01:22.9]} 32... Nc8 {[%clk 0:00:14.8]}
33. Nxb6 {[%clk 0:01:17.2]} 33... Rxb5 {[%clk 0:00:13.3]} 34. Nxc8 {[%clk
0:01:17.4]} 34... Rxb7 {[%clk 0:00:13.2]} 35. Nd6+ {[%clk 0:01:17.4]} 1-0

[Event "Early-Titled-Tuesday-Blitz-March-05-2024"]
[Site "Chess.com"]
[Date "2024.03.05"]
[Round "2"]
[White "RamonManon0g"]
[Black "Arystanner"]
[Result "0-1"]
[WhiteElo "2418"]
[BlackElo "2890"]
[TimeControl "180+1"]
[EndTime "8:17:01 PST"]
[Termination "Arystanner won by resignation"]

1. e4 {[%clk 0:03:00.9]} 1... c5 {[%clk 0:02:54.6]} 2. Nf3 {[%clk 0:03:00.5]}
2... Nc6 {[%clk 0:02:55.3]} 3. Bb5 {[%clk 0:03:00]} 3... e6 {[%clk 0:02:56]} 4.
Bxc6 {[%clk 0:02:56.4]} 4... bxc6 {[%clk 0:02:56.9]} 5. c4 {[%clk 0:02:55.4]}
5... Ne7 {[%clk 0:02:52.5]} 6. d3 {[%clk 0:02:55]} 6... Ng6 {[%clk 0:02:52.7]}
7. O-O {[%clk 0:02:54.3]} 7... d6 {[%clk 0:02:51.2]} 8. Nc3 {[%clk 0:02:53.8]}
8... e5 {[%clk 0:02:51.4]} 9. h3 {[%clk 0:02:53.6]} 9... Be7 {[%clk 0:02:48.9]}
10. Nh2 {[%clk 0:02:50.4]} 10... O-O {[%clk 0:02:48.3]} 11. Ne2 {[%clk
0:02:49.6]} 11... f5 {[%clk 0:02:48.7]} 12. f4 {[%clk 0:02:48.8]} 12... Be6
{[%clk 0:02:43.8]} 13. exf5 {[%clk 0:02:38.9]} 13... Bxf5 {[%clk 0:02:42.1]} 14.
g4 {[%clk 0:02:38.2]} 14... Bd7 {[%clk 0:02:42.4]} 15. f5 {[%clk 0:02:36.7]}
15... Nh4 {[%clk 0:02:42.8]} 16. Ng3 {[%clk 0:02:32.2]} 16... d5 {[%clk
0:02:43.3]} 17. Qe2 {[%clk 0:02:24.7]} 17... Bf6 {[%clk 0:02:43.5]} 18. Nh5
{[%clk 0:02:21.9]} 18... e4 {[%clk 0:02:38.1]} 19. Nxf6+ {[%clk 0:02:19.4]}
19... Qxf6 {[%clk 0:02:39]} 20. dxe4 {[%clk 0:02:19.1]} 20... Rae8 {[%clk
0:02:35.4]} 21. cxd5 {[%clk 0:02:18.1]} 21... cxd5 {[%clk 0:02:34.7]} 22. e5
{[%clk 0:01:49]} 22... Rxe5 {[%clk 0:02:32.7]} 23. Qd3 {[%clk 0:01:49.5]} 23...
d4 {[%clk 0:02:31.9]} 24. Bf4 {[%clk 0:01:45.1]} 24... Ree8 {[%clk 0:02:30]} 25.
Qc4+ {[%clk 0:01:44.4]} 25... Kh8 {[%clk 0:02:29.7]} 26. Qxc5 {[%clk 0:01:44.8]}
26... d3 {[%clk 0:02:24.7]} 27. Bg3 {[%clk 0:01:33.2]} 27... Re2 {[%clk
0:02:19.1]} 28. Bxh4 {[%clk 0:01:24.6]} 28... Qf7 {[%clk 0:01:57.9]} 29. Qxa7
{[%clk 0:01:03.6]} 29... Rg2+ {[%clk 0:01:48.4]} 30. Kh1 {[%clk 0:00:57.2]}
30... Rxg4 {[%clk 0:01:43.2]} 31. Qf2 {[%clk 0:00:31.7]} 31... Bc6+ {[%clk
0:01:40.6]} 32. Nf3 {[%clk 0:00:31.5]} 32... Rf4 {[%clk 0:01:30.8]} 33. Qg3
{[%clk 0:00:16.3]} 33... Qxf5 {[%clk 0:01:30.2]} 34. Kg2 {[%clk 0:00:14.7]}
34... Bxf3+ {[%clk 0:01:22.6]} 35. Rxf3 {[%clk 0:00:15.6]} 35... Rxf3 {[%clk
0:01:22.7]} 36. Qxf3 {[%clk 0:00:16.2]} 36... Qxf3+ {[%clk 0:01:22.9]} 0-1

[Event "Early-Titled-Tuesday-Blitz-March-05-2024"]
[Site "Chess.com"]
[Date "2024.03.05"]
[Round "2"]
[White "aljado"]
[Black "bancsoo"]
[Result "0-1"]
[WhiteElo "2061"]
[BlackElo "2926"]
[TimeControl "180+1"]
[EndTime "8:17:05 PST"]
[Termination "bancsoo won by resignation"]

1. e4 {[%clk 0:03:00.9]} 1... e5 {[%clk 0:02:59.8]} 2. Nf3 {[%clk 0:02:59.5]}
2... d6 {[%clk 0:03:00.2]} 3. d4 {[%clk 0:02:58.2]} 3... exd4 {[%clk 0:03:01.1]}
4. Nxd4 {[%clk 0:02:57.2]} 4... Nf6 {[%clk 0:03:01.9]} 5. Nc3 {[%clk 0:02:56.7]}
5... Be7 {[%clk 0:03:02.6]} 6. Bc4 {[%clk 0:02:55.6]} 6... O-O {[%clk 0:03:03]}
7. O-O {[%clk 0:02:55]} 7... c6 {[%clk 0:03:03.7]} 8. a4 {[%clk 0:02:52.3]} 8...
a5 {[%clk 0:03:01.7]} 9. h3 {[%clk 0:02:48.1]} 9... Na6 {[%clk 0:02:52.7]} 10.
Be3 {[%clk 0:02:45.1]} 10... Nc5 {[%clk 0:02:49.9]} 11. f3 {[%clk 0:02:40.8]}
11... Re8 {[%clk 0:02:46.9]} 12. Qe1 {[%clk 0:02:37.5]} 12... Bf8 {[%clk
0:02:46.3]} 13. Qh4 {[%clk 0:02:30.8]} 13... Qc7 {[%clk 0:02:20.3]} 14. Rae1
{[%clk 0:02:25]} 14... b6 {[%clk 0:02:04.2]} 15. Bg5 {[%clk 0:02:20.4]} 15...
Be7 {[%clk 0:02:00.4]} 16. Nf5 {[%clk 0:01:50.4]} 16... Bxf5 {[%clk 0:01:59.1]}
17. exf5 {[%clk 0:01:49.7]} 17... d5 {[%clk 0:01:57.9]} 18. Bd3 {[%clk
0:01:47.8]} 18... h6 {[%clk 0:01:55.2]} 19. Bc1 {[%clk 0:01:31.8]} 19... Nxd3
{[%clk 0:01:49.6]} 20. cxd3 {[%clk 0:01:29.4]} 20... Ne4 {[%clk 0:01:49.4]} 21.
Qg4 {[%clk 0:01:18.6]} 21... Bc5+ {[%clk 0:01:49.5]} 22. Be3 {[%clk 0:01:07.4]}
22... Nf6 {[%clk 0:01:48.1]} 23. Qh4 {[%clk 0:01:04]} 23... Bxe3+ {[%clk
0:01:43]} 24. Kh1 {[%clk 0:01:00.9]} 24... Bd2 {[%clk 0:01:37.1]} 25. Rd1 {[%clk
0:00:55.2]} 25... Bxc3 {[%clk 0:01:36.9]} 26. bxc3 {[%clk 0:00:54.1]} 26... Qe5
{[%clk 0:01:36.6]} 27. g4 {[%clk 0:00:43.6]} 27... Qf4 {[%clk 0:01:30.6]} 28.
Qf2 {[%clk 0:00:36.4]} 28... Re3 {[%clk 0:01:29.4]} 29. Kg2 {[%clk 0:00:34.7]}
29... Rae8 {[%clk 0:01:29.1]} 30. Rd2 {[%clk 0:00:33.1]} 30... Nd7 {[%clk
0:01:24.5]} 31. Qh4 {[%clk 0:00:15]} 31... Ne5 {[%clk 0:01:20.5]} 32. Rdf2
{[%clk 0:00:13.3]} 32... Nxd3 {[%clk 0:01:18]} 33. Rd2 {[%clk 0:00:11.9]} 33...
Re2+ {[%clk 0:01:18.1]} 0-1

[Event "Early-Titled-Tuesday-Blitz-March-05-2024"]
[Site "Chess.com"]
[Date "2024.03.05"]
[Round "2"]
[White "Ykow"]
[Black "ChessboArt"]
[Result "1-0"]
[WhiteElo "2507"]
[BlackElo "2274"]
[TimeControl "180+1"]
[EndTime "8:17:07 PST"]
[Termination "Ykow won by resignation"]

1. e4 {[%clk 0:02:55.9]} 1... c6 {[%clk 0:02:59.4]} 2. Nf3 {[%clk 0:02:55.2]}
2... d5 {[%clk 0:03:00.2]} 3. e5 {[%clk 0:02:53.6]} 3... g6 {[%clk 0:02:59]} 4.
d4 {[%clk 0:02:54.5]} 4... Bg7 {[%clk 0:02:58.9]} 5. h3 {[%clk 0:02:54.6]} 5...
Nh6 {[%clk 0:02:59]} 6. c4 {[%clk 0:02:54.8]} 6... O-O {[%clk 0:02:58.3]} 7. Nc3
{[%clk 0:02:55.7]} 7... Be6 {[%clk 0:02:58.4]} 8. cxd5 {[%clk 0:02:54.6]} 8...
Bxd5 {[%clk 0:02:58.5]} 9. Nxd5 {[%clk 0:02:52.1]} 9... cxd5 {[%clk 0:02:59.4]}
10. Bd3 {[%clk 0:02:51]} 10... Nc6 {[%clk 0:02:58.7]} 11. O-O {[%clk 0:02:51.2]}
11... f6 {[%clk 0:02:35.4]} 12. exf6 {[%clk 0:02:49.3]} 12... exf6 {[%clk
0:02:36.3]} 13. Qb3 {[%clk 0:02:47.6]} 13... Qd7 {[%clk 0:02:31.7]} 14. Re1
{[%clk 0:02:24.8]} 14... Rfe8 {[%clk 0:02:21.5]} 15. Bd2 {[%clk 0:02:23]} 15...
Nf7 {[%clk 0:02:17.9]} 16. Bc3 {[%clk 0:02:14.9]} 16... f5 {[%clk 0:01:32.2]}
17. Qa4 {[%clk 0:02:03.9]} 17... h6 {[%clk 0:01:16.1]} 18. b4 {[%clk 0:01:55.5]}
18... a6 {[%clk 0:01:13.5]} 19. b5 {[%clk 0:01:53.7]} 19... axb5 {[%clk
0:01:12.7]} 20. Qxb5 {[%clk 0:01:54.6]} 20... Ng5 {[%clk 0:00:55.9]} 21. Nxg5
{[%clk 0:01:45.4]} 21... hxg5 {[%clk 0:00:56.8]} 22. a4 {[%clk 0:01:35.9]} 22...
Kh7 {[%clk 0:00:38.9]} 23. Rab1 {[%clk 0:01:32]} 23... Rad8 {[%clk 0:00:24.9]}
24. Rxe8 {[%clk 0:01:24.6]} 24... Rxe8 {[%clk 0:00:16.8]} 25. Qxb7 {[%clk
0:01:21.7]} 25... Qd6 {[%clk 0:00:16.4]} 26. Rb6 {[%clk 0:01:10.1]} 26... Rb8
{[%clk 0:00:11.8]} 27. Rxc6 {[%clk 0:01:09.9]} 27... Rxb7 {[%clk 0:00:09.4]} 28.
Rxd6 {[%clk 0:01:09.9]} 28... Rb3 {[%clk 0:00:09.7]} 29. Rc6 {[%clk 0:01:10.1]}
29... Ra3 {[%clk 0:00:05.7]} 30. a5 {[%clk 0:01:08.5]} 1-0

[Event "Early-Titled-Tuesday-Blitz-March-05-2024"]
[Site "Chess.com"]
[Date "2024.03.05"]
[Round "2"]
[White "SlavenPastar"]
[Black "Firouzja2003"]
[Result "0-1"]
[WhiteElo "2639"]
[BlackElo "3219"]
[TimeControl "180+1"]
[EndTime "8:17:10 PST"]
[Termination "Firouzja2003 won by resignation"]

1. b3 {[%clk 0:02:25.1]} 1... e5 {[%clk 0:02:57.8]} 2. Bb2 {[%clk 0:02:25.7]}
2... Nc6 {[%clk 0:02:58]} 3. Nf3 {[%clk 0:02:26.2]} 3... d6 {[%clk 0:02:57.7]}
4. d4 {[%clk 0:02:25.6]} 4... e4 {[%clk 0:02:57.5]} 5. d5 {[%clk 0:02:26.2]}
5... exf3 {[%clk 0:02:52.5]} 6. dxc6 {[%clk 0:02:26]} 6... bxc6 {[%clk
0:02:53.1]} 7. gxf3 {[%clk 0:02:24.6]} 7... Nf6 {[%clk 0:02:53.2]} 8. Rg1 {[%clk
0:02:23.5]} 8... g6 {[%clk 0:02:53.3]} 9. Nc3 {[%clk 0:02:19.2]} 9... Bg7 {[%clk
0:02:53.6]} 10. Ne4 {[%clk 0:02:12.5]} 10... O-O {[%clk 0:02:53.7]} 11. Nxf6+
{[%clk 0:02:07.5]} 11... Bxf6 {[%clk 0:02:54.6]} 12. Bxf6 {[%clk 0:01:19.6]}
12... Qxf6 {[%clk 0:02:55.5]} 13. Rc1 {[%clk 0:01:19.2]} 13... Re8 {[%clk
0:02:53.8]} 14. e3 {[%clk 0:01:17.4]} 14... a5 {[%clk 0:02:52.2]} 15. a4 {[%clk
0:01:16.6]} 15... d5 {[%clk 0:02:49.2]} 16. Be2 {[%clk 0:00:55.8]} 16... Rb8
{[%clk 0:02:49.5]} 17. Qd2 {[%clk 0:00:42.8]} 17... Rb4 {[%clk 0:02:48.9]} 18.
f4 {[%clk 0:00:42.1]} 18... d4 {[%clk 0:02:39.7]} 19. Rg3 {[%clk 0:00:38.5]}
19... Bf5 {[%clk 0:02:35.4]} 20. Kf1 {[%clk 0:00:36.8]} 20... Rd8 {[%clk
0:02:12.4]} 21. Rd1 {[%clk 0:00:31.4]} 21... Rd6 {[%clk 0:01:58.2]} 22. Qc1
{[%clk 0:00:23.3]} 22... c5 {[%clk 0:01:49.8]} 23. Bd3 {[%clk 0:00:22.8]} 23...
dxe3 {[%clk 0:01:46.6]} 24. Bxf5 {[%clk 0:00:16.1]} 24... e2+ {[%clk 0:01:46.8]}
25. Kxe2 {[%clk 0:00:15.5]} 25... Qxf5 {[%clk 0:01:47.7]} 26. Rxd6 {[%clk
0:00:14.6]} 26... cxd6 {[%clk 0:01:48.6]} 27. Rf3 {[%clk 0:00:13.5]} 27... Re4+
{[%clk 0:01:41.1]} 28. Kf1 {[%clk 0:00:12]} 28... Qg4 {[%clk 0:01:40.7]} 29. Rg3
{[%clk 0:00:07.4]} 29... Qh4 {[%clk 0:01:36.5]} 30. Kg2 {[%clk 0:00:06.9]} 30...
Rxf4 {[%clk 0:01:36.9]} 31. Qd2 {[%clk 0:00:06.8]} 31... Qf6 {[%clk 0:01:36.3]}
32. c4 {[%clk 0:00:04.9]} 32... Qf5 {[%clk 0:01:34.3]} 33. Rd3 {[%clk
0:00:01.5]} 33... Rxf2+ {[%clk 0:01:34.4]} 34. Qxf2 {[%clk 0:00:01.5]} 34...
Qxd3 {[%clk 0:01:35.1]} 35. Qf6 {[%clk 0:00:01.9]} 35... Qe2+ {[%clk 0:01:29.9]}
36. Kg3 {[%clk 0:00:01.5]} 36... Qe5+ {[%clk 0:01:29.7]} 37. Qxe5 {[%clk
0:00:01.4]} 37... dxe5 {[%clk 0:01:30.6]} 0-1

[Event "Early-Titled-Tuesday-Blitz-March-05-2024"]
[Site "Chess.com"]
[Date "2024.03.05"]
[Round "2"]
[White "MdChess1734"]
[Black "GaiozNigalidze"]
[Result "0-1"]
[WhiteElo "2388"]
[BlackElo "2696"]
[TimeControl "180+1"]
[EndTime "8:17:10 PST"]
[Termination "GaiozNigalidze won on time"]

1. e4 {[%clk 0:02:56.7]} 1... g6 {[%clk 0:03:00.9]} 2. d4 {[%clk 0:02:56.2]}
2... Bg7 {[%clk 0:03:00.6]} 3. Nc3 {[%clk 0:02:56.6]} 3... a6 {[%clk 0:03:01.2]}
4. a4 {[%clk 0:02:48.9]} 4... d6 {[%clk 0:03:01.1]} 5. Nf3 {[%clk 0:02:48.3]}
5... Bg4 {[%clk 0:02:58.7]} 6. Be2 {[%clk 0:02:46.8]} 6... Nc6 {[%clk
0:02:56.3]} 7. Be3 {[%clk 0:02:46.6]} 7... Bxf3 {[%clk 0:02:52.2]} 8. Bxf3
{[%clk 0:02:43.9]} 8... e5 {[%clk 0:02:52.8]} 9. d5 {[%clk 0:02:40.6]} 9... Nd4
{[%clk 0:02:52.9]} 10. Bxd4 {[%clk 0:02:39.3]} 10... exd4 {[%clk 0:02:52.9]} 11.
Ne2 {[%clk 0:02:39.7]} 11... Qf6 {[%clk 0:02:53.1]} 12. Qd3 {[%clk 0:02:38.7]}
12... Ne7 {[%clk 0:02:48.5]} 13. Rd1 {[%clk 0:02:33]} 13... c5 {[%clk
0:02:48.7]} 14. Qb3 {[%clk 0:02:02.8]} 14... O-O {[%clk 0:02:45.7]} 15. O-O
{[%clk 0:01:59.7]} 15... Rab8 {[%clk 0:02:45.3]} 16. a5 {[%clk 0:01:57.2]} 16...
h5 {[%clk 0:02:40.2]} 17. g3 {[%clk 0:01:53.6]} 17... c4 {[%clk 0:02:36]} 18.
Qxc4 {[%clk 0:00:54]} 18... Qxf3 {[%clk 0:02:34.6]} 19. Nxd4 {[%clk 0:00:54.5]}
19... Qxe4 {[%clk 0:02:21.6]} 20. Rfe1 {[%clk 0:00:33.8]} 20... Qxd5 {[%clk
0:02:21]} 21. Qxd5 {[%clk 0:00:26]} 21... Nxd5 {[%clk 0:02:20.5]} 22. Nb3 {[%clk
0:00:26]} 22... Nc7 {[%clk 0:02:12.6]} 23. Rxd6 {[%clk 0:00:25.3]} 23... Bxb2
{[%clk 0:02:12.2]} 24. Rb6 {[%clk 0:00:22.8]} 24... Nd5 {[%clk 0:02:10]} 25. Rd6
{[%clk 0:00:15.8]} 25... Rbd8 {[%clk 0:01:52.2]} 26. Rxd8 {[%clk 0:00:11.9]}
26... Rxd8 {[%clk 0:01:53.1]} 27. Rd1 {[%clk 0:00:12.5]} 27... Bf6 {[%clk
0:01:53.7]} 28. Nc5 {[%clk 0:00:10.9]} 28... Nb4 {[%clk 0:01:47.5]} 29. Rxd8+
{[%clk 0:00:10.3]} 29... Bxd8 {[%clk 0:01:47.2]} 30. Nxb7 {[%clk 0:00:11]} 30...
Bc7 {[%clk 0:01:46.8]} 31. c3 {[%clk 0:00:11.6]} 31... Nc6 {[%clk 0:01:46.8]}
32. Nc5 {[%clk 0:00:10.4]} 32... Bxa5 {[%clk 0:01:46.8]} 33. Nxa6 {[%clk
0:00:10.1]} 33... Bxc3 {[%clk 0:01:46.9]} 34. Kf1 {[%clk 0:00:05.6]} 34... Kg7
{[%clk 0:01:46.9]} 35. Nc5 {[%clk 0:00:05.7]} 35... Bd4 {[%clk 0:01:46.2]} 36.
Nd3 {[%clk 0:00:06]} 36... Kf6 {[%clk 0:01:45.8]} 37. Ke2 {[%clk 0:00:05.9]}
37... Kf5 {[%clk 0:01:46.3]} 38. h3 {[%clk 0:00:05.2]} 38... g5 {[%clk 0:01:46]}
0-1

[Event "Early-Titled-Tuesday-Blitz-March-05-2024"]
[Site "Chess.com"]
[Date "2024.03.05"]
[Round "2"]
[White "wild3000"]
[Black "LuisFSiles"]
[Result "1-0"]
[WhiteElo "2490"]
[BlackElo "2247"]
[TimeControl "180+1"]
[EndTime "8:17:10 PST"]
[Termination "wild3000 won on time"]

1. d4 {[%clk 0:03:00.5]} 1... Nf6 {[%clk 0:02:55.7]} 2. g3 {[%clk 0:02:59.9]}
2... g6 {[%clk 0:02:56]} 3. Bg2 {[%clk 0:03:00.4]} 3... Bg7 {[%clk 0:02:56.6]}
4. e4 {[%clk 0:03:00.7]} 4... d6 {[%clk 0:02:55]} 5. Nc3 {[%clk 0:02:59.9]} 5...
O-O {[%clk 0:02:54.6]} 6. h3 {[%clk 0:02:58.2]} 6... Nc6 {[%clk 0:02:54.8]} 7.
Be3 {[%clk 0:02:57.9]} 7... e5 {[%clk 0:02:54.1]} 8. d5 {[%clk 0:02:57]} 8...
Nd4 {[%clk 0:02:53.2]} 9. Nge2 {[%clk 0:02:52.6]} 9... c5 {[%clk 0:02:48.7]} 10.
dxc6 {[%clk 0:02:51.8]} 10... bxc6 {[%clk 0:02:12]} 11. Nxd4 {[%clk 0:02:50.3]}
11... exd4 {[%clk 0:02:12.3]} 12. Bxd4 {[%clk 0:02:50.4]} 12... Ba6 {[%clk
0:02:12.5]} 13. Qd2 {[%clk 0:02:41.2]} 13... Re8 {[%clk 0:01:54.4]} 14. O-O-O
{[%clk 0:02:40.3]} 14... Qa5 {[%clk 0:01:49.8]} 15. Kb1 {[%clk 0:02:35.5]} 15...
c5 {[%clk 0:01:48.3]} 16. Be3 {[%clk 0:02:28.4]} 16... Rab8 {[%clk 0:01:45.6]}
17. b3 {[%clk 0:02:07.1]} 17... Nd7 {[%clk 0:01:11.2]} 18. Nd5 {[%clk
0:01:51.8]} 18... Qa3 {[%clk 0:01:10.5]} 19. Qc1 {[%clk 0:01:52]} 19... Qa5
{[%clk 0:00:45.4]} 20. Bd2 {[%clk 0:01:51.9]} 20... Qa4 {[%clk 0:00:41.6]} 21.
Bc3 {[%clk 0:01:46.8]} 21... Ne5 {[%clk 0:00:36.2]} 22. Bb2 {[%clk 0:01:39.3]}
22... Qd7 {[%clk 0:00:31]} 23. f4 {[%clk 0:01:26.4]} 23... Nc4 {[%clk
0:00:30.5]} 24. Nf6+ {[%clk 0:01:21.7]} 24... Bxf6 {[%clk 0:00:28.2]} 25. Bxf6
{[%clk 0:01:22.6]} 25... Qe6 {[%clk 0:00:15.9]} 26. e5 {[%clk 0:01:19.3]} 26...
dxe5 {[%clk 0:00:14.3]} 27. fxe5 {[%clk 0:01:17.3]} 27... Nxe5 {[%clk
0:00:14.5]} 28. Rhf1 {[%clk 0:01:16.2]} 28... c4 {[%clk 0:00:13.3]} 29. Qh6
{[%clk 0:01:15.1]} 29... Qxf6 {[%clk 0:00:04.6]} 30. Rxf6 {[%clk 0:01:16]} 30...
cxb3 {[%clk 0:00:04.1]} 31. axb3 {[%clk 0:01:15.4]} 1-0

[Event "Early-Titled-Tuesday-Blitz-March-05-2024"]
[Site "Chess.com"]
[Date "2024.03.05"]
[Round "2"]
[White "KanalSzachowy"]
[Black "klercaku"]
[Result "1-0"]
[WhiteElo "2465"]
[BlackElo "2178"]
[TimeControl "180+1"]
[EndTime "8:17:13 PST"]
[Termination "KanalSzachowy won on time"]

1. e4 {[%clk 0:03:00.9]} 1... e5 {[%clk 0:02:59.5]} 2. Nf3 {[%clk 0:03:00.9]}
2... Nc6 {[%clk 0:02:59.1]} 3. Bc4 {[%clk 0:03:01.4]} 3... Bc5 {[%clk
0:02:58.6]} 4. c3 {[%clk 0:02:59.9]} 4... Nf6 {[%clk 0:02:58.2]} 5. d4 {[%clk
0:02:59.8]} 5... exd4 {[%clk 0:02:57.7]} 6. cxd4 {[%clk 0:03:00.7]} 6... Bb4+
{[%clk 0:02:57.7]} 7. Nbd2 {[%clk 0:03:00.8]} 7... Nxe4 {[%clk 0:02:41.5]} 8. d5
{[%clk 0:02:59.9]} 8... Ne7 {[%clk 0:02:31.3]} 9. O-O {[%clk 0:02:59.7]} 9...
Nxd2 {[%clk 0:02:28.9]} 10. Nxd2 {[%clk 0:02:59]} 10... d6 {[%clk 0:02:12.5]}
11. a3 {[%clk 0:02:57.6]} 11... Ba5 {[%clk 0:02:07.8]} 12. Qa4+ {[%clk
0:02:48.1]} 12... c6 {[%clk 0:02:07.7]} 13. dxc6 {[%clk 0:02:46.4]} 13... bxc6
{[%clk 0:02:07.1]} 14. Re1 {[%clk 0:02:43.2]} 14... O-O {[%clk 0:01:58]} 15.
Rxe7 {[%clk 0:02:42.4]} 15... Qxe7 {[%clk 0:01:11]} 16. Qxa5 {[%clk 0:02:41.3]}
16... Qe1+ {[%clk 0:01:08.6]} 17. Bf1 {[%clk 0:02:39.5]} 17... Be6 {[%clk
0:00:55.4]} 18. Qc3 {[%clk 0:02:38.8]} 18... c5 {[%clk 0:00:45.9]} 19. Qg3
{[%clk 0:02:37.9]} 19... Qe5 {[%clk 0:00:43.8]} 20. Qxe5 {[%clk 0:02:37.6]}
20... dxe5 {[%clk 0:00:43.9]} 21. Nf3 {[%clk 0:02:38.5]} 21... e4 {[%clk
0:00:43.4]} 22. Ng5 {[%clk 0:02:35.3]} 22... Bf5 {[%clk 0:00:36.9]} 23. Be3
{[%clk 0:02:32]} 23... h6 {[%clk 0:00:32.5]} 24. g4 {[%clk 0:02:26.8]} 24... Bg6
{[%clk 0:00:23.3]} 25. Nh3 {[%clk 0:02:22.9]} 25... Rac8 {[%clk 0:00:21.3]} 26.
Bc4 {[%clk 0:02:16.3]} 26... Kh7 {[%clk 0:00:18.8]} 27. Nf4 {[%clk 0:02:11]}
27... Rfd8 {[%clk 0:00:16.2]} 28. h4 {[%clk 0:02:08.1]} 28... h5 {[%clk
0:00:09.3]} 29. gxh5 {[%clk 0:01:55.9]} 29... Bf5 {[%clk 0:00:07.9]} 30. Bxf7
{[%clk 0:01:56.5]} 30... c4 {[%clk 0:00:05.3]} 31. Bg6+ {[%clk 0:01:56.5]} 31...
Bxg6 {[%clk 0:00:05.5]} 32. hxg6+ {[%clk 0:01:57.4]} 32... Kg8 {[%clk
0:00:05.7]} 33. Rc1 {[%clk 0:01:56.7]} 33... Rb8 {[%clk 0:00:04.1]} 34. Rc2
{[%clk 0:01:51.9]} 34... a5 {[%clk 0:00:02.9]} 35. h5 {[%clk 0:01:40.3]} 35...
Rd1+ {[%clk 0:00:03.3]} 36. Kg2 {[%clk 0:01:39.5]} 36... Rb1 {[%clk 0:00:04]}
37. Bd4 {[%clk 0:01:37.2]} 37... a4 {[%clk 0:00:01.3]} 38. Rxc4 {[%clk
0:01:35.6]} 1-0

[Event "Early-Titled-Tuesday-Blitz-March-05-2024"]
[Site "Chess.com"]
[Date "2024.03.05"]
[Round "2"]
[White "N4700000"]
[Black "Mops_2004"]
[Result "0-1"]
[WhiteElo "2497"]
[BlackElo "2849"]
[TimeControl "180+1"]
[EndTime "8:17:17 PST"]
[Termination "Mops_2004 won on time"]

1. e4 {[%clk 0:03:00.9]} 1... g6 {[%clk 0:02:59.9]} 2. d4 {[%clk 0:02:59.3]}
2... Bg7 {[%clk 0:03:00.2]} 3. h4 {[%clk 0:02:56.9]} 3... h6 {[%clk 0:02:54.2]}
4. Bc4 {[%clk 0:02:53.4]} 4... c5 {[%clk 0:02:53.4]} 5. d5 {[%clk 0:02:47.3]}
5... b5 {[%clk 0:02:52.6]} 6. Be2 {[%clk 0:02:39.9]} 6... Bb7 {[%clk 0:02:45.5]}
7. a4 {[%clk 0:02:35]} 7... a6 {[%clk 0:02:37.5]} 8. axb5 {[%clk 0:02:11.2]}
8... axb5 {[%clk 0:02:37.4]} 9. Rxa8 {[%clk 0:02:11.7]} 9... Bxa8 {[%clk
0:02:38.3]} 10. Na3 {[%clk 0:02:11.6]} 10... Nf6 {[%clk 0:02:32.9]} 11. f3
{[%clk 0:02:05.7]} 11... b4 {[%clk 0:02:30.7]} 12. Nc4 {[%clk 0:02:04.8]} 12...
O-O {[%clk 0:02:30.3]} 13. Nh3 {[%clk 0:01:58.4]} 13... e6 {[%clk 0:02:19.5]}
14. d6 {[%clk 0:01:49.6]} 14... Nh5 {[%clk 0:02:19.3]} 15. Nf2 {[%clk
0:01:27.5]} 15... Ng3 {[%clk 0:02:07.2]} 16. Rh3 {[%clk 0:01:26.9]} 16... Nxe2
{[%clk 0:02:07.4]} 17. Qxe2 {[%clk 0:01:26.7]} 17... Nc6 {[%clk 0:02:08]} 18.
Be3 {[%clk 0:01:14.2]} 18... Nd4 {[%clk 0:02:05.4]} 19. Qd2 {[%clk 0:01:12.3]}
19... f5 {[%clk 0:01:44.6]} 20. c3 {[%clk 0:00:58.2]} 20... bxc3 {[%clk
0:01:42.6]} 21. bxc3 {[%clk 0:00:59.1]} 21... Nb5 {[%clk 0:01:15.9]} 22. e5
{[%clk 0:00:30.7]} 22... Bd5 {[%clk 0:01:15.3]} 23. Qd3 {[%clk 0:00:18.5]} 23...
Qa8 {[%clk 0:01:09.7]} 24. Nd1 {[%clk 0:00:11.2]} 24... Rb8 {[%clk 0:01:00.6]}
25. Rg3 {[%clk 0:00:08.3]} 25... Kh7 {[%clk 0:00:59.7]} 26. Bxc5 {[%clk
0:00:07.6]} 26... Qc6 {[%clk 0:00:58.2]} 0-1